Cogmind - Beta 14 @@@ ROGUE MODE // 2024.09.24 @ 17:15:02 Player: siona Result: Destroyed by S-10 Pest with Light Assault Rifle Performance ------------- Evolutions (0) 0 Regions Visited (2) 400 Robots Destroyed (19) 95 Value Destroyed (387) 387 Prototype IDs (0) 0 Alien Tech Used (0) 0 Bonus (64) 64 TOTAL SCORE: 946 Bonus ------- Follower Combat Kills 64 Cogmind --------- Core Integrity 0/250 Matter 280/300 Energy 192/250 System Corruption 0% Temperature Cool (34) Movement Core (400) Ox7 Location -10/Mines Parts ------- > --- POWER (1) -------- Ion Engine > --- PROPULSION (2) --- (None) > --- UTILITY (2) ------ Improved Light Armor Plating Improved Light Armor Plating > --- WEAPON (2) ------- Beamcaster Heavy Particle Cannon > --- INVENTORY (5) ---- Wheel Medium Matter Pod (100) Sensor Array Signal Interpreter Utility Shielding Peak State ------------ > --- POWER ------------ Ion Engine > --- PROPULSION ------- (None) > --- UTILITY ---------- High-capacity Storage Unit Improved Light Armor Plating > --- WEAPON ----------- Beamcaster Heavy Particle Cannon > --- INVENTORY -------- Light Treads Wheel Medium Matter Pod Large Matter Pod Weight Redist. System Sensor Array Signal Interpreter Signal Interpreter Signal Interpreter Signal Interpreter Transport Network Coupler Improved Power Shielding Utility Shielding Weapon Shielding Improved Light Armor Plating Small Laser Beamcaster Welding Torch [Rating: 15] Favorites ----------- Power Light Nuclear Core Engine Ion Engine Power Core Light Nuclear Core Propulsion Light Treads Treads Light Treads Utility Terrain Scanner Device Terrain Scanner Storage High-capacity Storage Unit Protection Improved Light Armor Plating Weapon Small Laser Energy Gun Small Laser Energy Cannon Heavy Particle Cannon Ballistic Gun Light Assault Rifle Slashing Weapon Mining Claw Build | -11 -10 -10 ------- Run | Yrd Mat Min Slots Evolved . | . . . Power . | . . . Propulsion . | . . . Utility . | . . . Weapon . | . . . Parts Attached 24 | 6 12 6 Power 3 | 1 1 1 Engine 2 | 1 . 1 Core 1 | . 1 . Reactor . | . . . Propulsion 5 | 2 3 . Treads 5 | 2 3 . Leg . | . . . Wheel . | . . . Hover . | . . . Flight . | . . . Utility 5 | 1 2 2 Device 1 | . 1 . Storage 2 | 1 1 . Processor . | . . . Hackware . | . . . Protection 2 | . . 2 Artifact . | . . . Weapon 11 | 2 6 3 Energy Gun 5 | 1 3 1 Energy Cannon 1 | . . 1 Ballistic Gun 4 | 1 3 . Ballistic Cannon . | . . . Launcher . | . . . Special Weapon . | . . . Impact Weapon . | . . . Slashing Weapon 1 | . . 1 Piercing Weapon . | . . . Special Melee Weapon . | . . . Unidentified Prototypes . | . . . Parts Lost 9 | . 3 6 Power 2 | . 1 1 Propulsion 2 | . . 2 Utility 1 | . . 1 Weapon 4 | . 2 2 Highest Loss Streak 4 | . 3 4 To Critical Strikes 1 | . . 1 Average Slot Usage (%) 94 | . 96 86 Engine 2 | . 2 3 Core 10 | . 11 7 Treads 26 | . 27 21 Device 12 | . 13 7 Storage 14 | . 14 14 Protection 1 | . . 5 Energy Gun 13 | . 15 6 Energy Cannon 1 | . . 4 Ballistic Gun 9 | . 10 7 Slashing Weapon 1 | . . 7 Peak Build Rating 15 | 6 10 15 Average Rating 8 | 4 8 9 On Entrance 5 | . 6 10 Naked Turns . | . . . Heaviest Build 56 | 13 48 56 Greatest Support 40 | 40 40 40 Greatest Overweight (x) 18 | . 1 18 Average Overweight (x) . | . . 1 Largest Inventory Capacity 20 | 8 20 20 Average Capacity 14 | 6 13 19 Most Carried 19 | 4 16 19 Average Carried 10 | 2 9 16 Final Capacity 20 | 8 20 5 Final Carried 16 | 4 16 5 Class Distribution -------------------- 66% | Mutant 33% | Scavenger-Mutant Dominant Class ---------------- Mutant | -10/Materials Mutant | -10/Mines Resources | -11 -10 -10 ----------- Run | Yrd Mat Min Matter Collected 692 | 97 546 49 Remotely . | . . . Salvage Created 667 | . 619 48 Parts 40 | . 40 . Haulers Intercepted 1 | . 1 . Recyclers Shooed . | . . . Parts Field Recycled . | . . . Retrieved Matter . | . . . Parts Self-Destructed . | . . . Prevented . | . . . Kills | -11 -10 -10 ------- Run | Yrd Mat Min Combat Hostiles Destroyed 15 | . 12 3 Melee 3 | . . 3 Guns 9 | . 9 . AOE 3 | . 3 . Classes Destroyed 8 | . 7 1 Builder 1 | . 1 . Hauler 1 | . 1 . Recycler 1 | . 1 . Operator 1 | . 1 . Watcher 3 | . 3 . Swarmer 6 | . 6 . Grunt 6 | . 6 . Assembled 3 | . . 3 Best Kill Streak 4 | . 4 1 Combat Bots Only 3 | . 3 1 Max Kills in Single Turn 2 | . 2 1 Gunslinging . | . . . Exploded 1 | . 1 . Melee 1 | . . 1 Uniques/NPCs Destroyed . | . . . Combat | -11 -10 -10 -------- Run | Yrd Mat Min Hostile Shots Fired 113 | . 72 41 Missed 24 | . 16 8 Damage Taken 1139 | . 711 428 Core 256 | . 192 64 Absorbed by Shields . | . . . Core Remaining (%) 100 | 100 . . Volleys Fired 65 | . 60 5 Largest 2 | . 2 2 Hottest 150 | . 80 150 Shots Fired 121 | . 114 7 Gun 117 | . 114 3 Cannon 4 | . . 4 Launcher . | . . . Special . | . . . Kinetic 46 | . 45 1 Thermal 47 | . 41 6 Explosive . | . . . Electromagnetic 28 | . 28 . Robot Hit Streak 8 | . 8 6 Robot Miss Streak 5 | . 5 3 Penetration Max . | . . . Secondary Targets . | . . . Shots Hit Robots 69 | . 61 8 Core Hits 36 | . 33 3 Critical Kills . | . . . Critical Parts Destroyed . | . . . Critical Strikes . | . . . Melee Attacks 11 | . . 11 Impact . | . . . Slashing 11 | . . 11 Piercing . | . . . Sneak Attacks . | . . . Combat Hostiles . | . . . Follow-up Attacks . | . . . Damage Inflicted 1089 | . 907 182 Guns 709 | . 668 41 Cannons 25 | . . 25 Explosions 239 | . 239 . Melee 116 | . . 116 Ramming . | . . . Kinetic 215 | . 206 9 Thermal 539 | . 482 57 Explosive . | . . . Electromagnetic 219 | . 219 . Impact . | . . . Slashing 116 | . . 116 Piercing . | . . . Highest Corruption . | . . . Average Corruption . | . . . Corruption Purged . | . . . Corruption Blocked . | . . . Overload Shots . | . . . Overflow Damage . | . . . Projectiles . | . . . Explosions . | . . . Melee . | . . . Knockbacks . | . . . Impact . | . . . Kinetic . | . . . Secondary . | . . . Self-Inflicted Damage 109 | . 109 . Shots 3 | . 3 . Rammed . | . . . Targets Rammed . | . . . Kicked . | . . . Crushed . | . . . Highest Temperature 168 | . 168 76 Average Temperature 46 | . 47 35 Received Heat Transfer 279 | . 279 . Siege Activations . | . . . Robots Corrupted 1 | . 1 . Combat Hostiles . | . . . Parts Fried 1 | . 1 . Impact Corruptions . | . . . Robots Melted . | . . . Combat Hostiles . | . . . Parts Melted 1 | . 1 . Heat Transferred 949 | . 850 99 Parts Sabotaged . | . . . Parts Stolen . | . . . Parts Stripped . | . . . Power Chain Reactions 3 | . 3 . Alert | -11 -10 -10 ------- Run | Yrd Mat Min Peak Influence 281 | . 281 32 Initial 8 | . . 8 Average 54 | . 68 12 Maximum Alert Level 1 | . 1 . Low Security (%) 93 | 100 91 100 Level 1 6 | . 8 . Level 2 . | . . . Level 3 . | . . . Level 4 . | . . . Level 5 . | . . . High Security . | . . . Max Security . | . . . Squads Dispatched 1 | . . 1 Investigation 1 | . . 1 Extermination . | . . . Reinforcement . | . . . Assault . | . . . Garrison . | . . . Intercept . | . . . Searches Triggered . | . . . Construction Impeded . | . . . Haulers Reinforced . | . . . Active Scanning Responses . | . . . Cargo Convoy Interrupts . | . . . Stealth | -11 -10 -10 --------- Run | Yrd Mat Min Distress Signals 2 | . 2 . Communications Jammed . | . . . Distress Signals . | . . . Times Spotted 40 | . 26 14 Peak Tracking Total 7 | . 5 7 Tactical Retreats 1 | . . 1 Traps | -11 -10 -10 ------- Run | Yrd Mat Min Traps Triggered 2 | . 2 . Indirectly . | . . . Trap Hack Attempts . | . . . Triggered . | . . . Disarmed . | . . . Reprogrammed . | . . . Reused . | . . . Traps Extracted . | . . . Installed . | . . . Triggered 1 | . 1 . Machines | -11 -10 -10 ---------- Run | Yrd Mat Min Machines Disabled 2 | . 2 . Max in Single Turn 1 | . 1 . Machines Repaired . | . . . Machines Dismantled . | . . . Machines Sabotaged . | . . . Overloaded Fab Kills . | . . . Hacking | -11 -10 -10 --------- Run | Yrd Mat Min Machines Accessed 2 | . 1 1 Terminals 1 | . 1 . Fabricators . | . . . Repair Stations . | . . . Recycling Units . | . . . Scanalyzers . | . . . Garrison Access . | . . . Total Hacks 8 | . 7 1 Successful 5 | . 4 1 Failed 3 | . 3 . Catastrophic . | . . . Database Lockouts . | . . . Manual . | . . . Terminals 7 | . 7 . Fabricators . | . . . Repair Stations . | . . . Recycling Units . | . . . Scanalyzers . | . . . Garrison Access . | . . . Terminal Hacks 5 | . 4 1 Record 2 | . 2 . Open Door 1 | . . 1 Terminal Index 1 | . 1 . Locate Traps 1 | . 1 . Fabricator Hacks . | . . . Repair Station Hacks . | . . . Recycling Unit Hacks . | . . . Scanalyzer . | . . . Garrison Access Hacks . | . . . Unauthorized Hacks . | . . . Terminals . | . . . Fabricators . | . . . Repair Stations . | . . . Recycling Units . | . . . Scanalyzers . | . . . Garrison Access . | . . . Data Cores Recovered 1 | . 1 . Used 1 | . 1 . Hacking Detections 1 | . 1 . Full Trace Events . | . . . Feedback Events . | . . . Feedback Blocked . | . . . Robot Schematics Acquired . | . . . Robots Built . | . . . Authchips . | . . . Time . | . . . Total Robot Build Rating . | . . . Part Schematics Acquired . | . . . Parts Built . | . . . Authchips . | . . . Time . | . . . Total Part Build Rating . | . . . Parts Repaired . | . . . Time . | . . . Parts Recycled . | . . . Recycled Matter . | . . . Retrieved Matter . | . . . Retrieved Components . | . . . Parts Scanalyzed . | . . . Part Schematics Acquired . | . . . Parts Damaged . | . . . Bothacking | -11 -10 -10 ------------ Run | Yrd Mat Min Used RIF Installer . | . . . Robots Hacked . | . . . Non-combat . | . . . Combat . | . . . Robot Hacks Applied . | . . . Relay Couplers Released . | . . . Fabnet Peak Effective % . | . . . Robots Rewired . | . . . Allies Hacked . | . . . Hacks Repelled . | . . . Allies | -11 -10 -10 -------- Run | Yrd Mat Min Total Allies 2 | . . 2 Largest Group 2 | . . 2 Highest-Rated Group 38 | . . 38 Highest-Rated Ally 31 | . . 31 Total Orders . | . . . Ally Attacks 11 | . . 11 Total Damage 146 | . . 146 Kills 3 | . . 3 Allies Corrupted . | . . . Allies Melted . | . . . Intel | -11 -10 -10 ------- Run | Yrd Mat Min Robot Analysis Total . | . . . Derelict Logs Recovered . | . . . Drone Launches . | . . . Drone Recoveries . | . . . Exploration | -11 -10 -10 ------------- Run | Yrd Mat Min Turns Passed 2566 | 82 1934 550 Spaces Moved 1126 | 44 903 179 Core 2 | 1 . 1 Treads 1124 | 43 903 178 Legs . | . . . Wheels . | . . . Hover . | . . . Flight . | . . . Fastest Speed 50 | 50 160 240 Average Speed 203 | 157 191 274 Slowest Speed 950 | 160 240 950 Overloaded Moves . | . . . Propulsion Burnouts . | . . . Robots Hopped . | . . . Cave-ins Triggered . | . . . Exploration Rate (%) 46 | 4 90 44 Regions Visited 2 Branch Regions 1 Pre-discovered Areas 1 | . . 1 Known Exits Taken . | . . . Unknown Exits Taken 2 | 1 1 . Scrap Searched . | . . . Spaces Dug . | . . . Terrain Destroyed 8 | . 5 3 Melee . | . . . Projectile 3 | . . 3 AOE 5 | . 5 . Terrain Rammed . | . . . Walls Destroyed . | . . . Machines Disabled . | . . . Actions | -11 -10 -10 --------- Run | Yrd Mat Min Total 1262 | 54 1000 208 Wait 13 | . 10 3 Move 1124 | 43 902 179 Hop . | . . . Pick Up 22 | 5 13 4 Fast Attach 16 | 5 9 2 Attach 4 | 1 1 2 Detach . | . . . Swap 4 | . 2 2 Drop 3 | . 3 . Fire 65 | . 60 5 Melee 11 | . . 11 Ram . | . . . Kick . | . . . Crush . | . . . Escape Stasis . | . . . Rewire . | . . . Trap . | . . . Miscellaneous . | . . . Route ------- -11/Scrapyard -10/Materials (discovered 5 exits: [*Mat x3] / *Min x2) -10/Mines History --------- Turn | Location | Event 25 | -11/Scrapyard | Discovered new exit (range 15) 83 | -11/Scrapyard | Entered Materials 218 | -10/Materials | Discovered new exit (range 15) 312 | -10/Materials | Build established: Mutant 320 | -10/Materials | Core integrity fell below 50% 415 | -10/Materials | Lost 3 parts (1p2w) 427 | -10/Materials | Discovered new exit (range 15) 647 | -10/Materials | Discovered new exit (range 14) 745 | -10/Materials | Discovered new exit (range 16) 1365 | -10/Materials | Discovered new exit (range 16) 1715 | -10/Materials | Build established: Scavenger-Mutant 2017 | -10/Materials | Entered Mines 2018 | -10/Mines | Learned location of Storage (-9) 2251 | -10/Mines | Assembled infested the area 2283 | -10/Mines | Core integrity fell below 20% 2341 | -10/Mines | Lost 4 parts (1p1n1u1w) 2356 | -10/Mines | Met a Derelict shopkeep closing up shop 2567 | -10/Mines | Destroyed by S-10 Pest with Light Assault Rifle Last Messages --------------- 02363_ U-05 Engineer lays Concrete. 02364_ U-05 Engineer builds a Wall. 02368_ Acquired Imp. Light Armor Plating. 02369_ U-05 Engineer builds a Wall. 02373_ U-05 Engineer lays Concrete. 02374_ U-05 Engineer builds a Wall. 02379_ Acquired Hvy. Particle Cannon. 02387_ Acquired Imp. Power Shielding. 02391_ Acquired Imp. Light Armor Plating. 02404_ R-06 Scavenger collects Lgt. Angular Momentum Engine. 02407_ R-06 Scavenger collects Imp. Heat Sink. 02417_ G-34 Mercenary destroyed. 02421_ KD-I4R(g) destroyed. 02431_ as-58004 destroyed. 02434_ Acquired 30 matter. 02443_ Acquired Beamcaster. 02554_ Lgt. Treads destroyed. 02564_ Mining Claw destroyed. 02566_ Destroyed Flight Unit. Map ----- +----------------------------------------------------+ | | | | | | | | | | | | | | | | | | | | | | | | | | | | | | | | | | | | | ?????????????????????????????????????????? | | ?????????????????????????????????????????? | | ????????????????????######???????????????? | | ???????????????????## ##????########??? | | ??????????????????## #????# #??? | | ???????????######## !###### #??? | | ?????????? ss =![ #??? | | ?????????? s !!@|##### #??? | | ?????????????#####; !!! #??########??? | | ???????????########## ![ #????????????? | | ??????????##""""##??# ##????????????? | | ??????????#"! "#??# # ##?????????????? | | ??????????#" !"#??# ## #??????????????? | | ????######## ##??# ## #??????????????? | | ???## ### ###??# ## #??????????????? | | ???# X #### ## #??????????????? | | ???# % =%% ## #??????????????? | | ???# *%!% #??????????????? | | #??# ""# ######??????????????? | | #??## ### #???????????????????? | | ????## ##?# #???????????????????? | | #????## ####??# #???????????????????? | | ???#??## # ##?????# ???????????????????? | | ??#????#### #?????###???????????????????? | | ?####?????#= #?#?#???????????????????????? | | ## ##### #% #???????? ??????????????????? | | # % | #??????#????????????????????? | | ### ## ????? ?????????????????????? | | #? ???????????????????????????? | | #### ? ????????????????????????? | | ##?# ??????????????????????????? | | #### #?????????????????????????? | +----------------------------------------------------+ Best States ------------- Heat Dissipation 25 Energy Generation 14 Energy Capacity 250 Matter Stores 300 Matter Capacity 300 Sight Range 16 Terrain Scan Range 14 Terrain Scan Density 10 Armor Coverage 150 Evasion (%) 40 Recoil Reduction 2 Item Schematics ----------------- None Robot Schematics ------------------ None Fabricated ------------ Nothing Alien Tech Used ----------------- None Achievements -------------- None Challenges ------------ None Game ------ Seed BottomlessSwarmDetector Manual? 0 Play Time 00:14:32 Cumulative 13.2 hours Start 2024.09.24 @ 17:00:09 End 2024.09.24 @ 17:15:02 Sessions 1 Manual Loads 0 Difficulty Rogue Special Mode None Game No. 24 Rogue 23 Adventurer 1 Explorer 0 Win Type - Total 0 Types 0/0/0/0/0/0/0/0/0 Lore% 11 Gallery% 16 Achievement% 17 Wizard Run 0 Options --------- Layout 1 ASCII 0 Keyboard 0 Movement Mouse Keybinds 0 Fullscreen 1 Font 32/SmallcapsGlow Map View 50x35 Zoom Use 0% Tactical HUD 1 Map Filters NONE Filters NONE Steam 1 RUN: 6af984b1-d460-4292-aa74-70e98ce9c5e8